bitfinex-derivatives/quotes_BNBF0:USTF0_20250112
["timestamp","ask_amount","ask_price","bid_price","bid_amount"]
[1736642811446,0.28631554,698.53,696.98,1.28674089]
[1736642811648,0.28631554,698.53,697.03,1.28674089]
[1736642812245,0.26324008,698.52,697.03,1.28674089]
[1736642812442,0.28632374,698.51,697.03,1.28674089]
[1736642812646,0.28632374,698.51,697.04,1.28674089]
[1736642813249,0.28632374,698.51,697.07,1.28674089]
[1736642814449,0.28632374,698.51,697.08,1.28674089]
[1736642815949,0.28632374,698.51,697.11,1.28674089]
[1736642816848,0.28632374,698.51,697.02,2.70058419]
[1736642817042,0.28632374,698.51,697.11,1.39]
[1736642822045,0.26324606,698.5,697.11,1.39]
[1736642822752,0.28632374,698.51,697.11,1.39]
[1736642822953,1.33755775,698.5,697.11,1.39]
[1736642823149,1.07430863,698.5,697.11,1.39]
[1736642823347,0.28633194,698.49,697.11,1.39]
[1736642824155,1.36064057,698.49,697.11,1.39]
[1736642824549,1.36064057,698.49,697.11,2.30915027]
[1736642824854,1.36064057,698.49,697.11,4.09058419]
[1736642825053,0.28633194,698.49,697.16,1.28674089]
[1736642825955,0.28633194,698.49,697.15,1.28674089]
[1736642827350,0.28633194,698.49,697.16,1.28674089]
[1736642827751,0.28633194,698.49,697.16,3.98732508]
[1736642828358,0.26325653,698.48,697.16,3.98732508]
[1736642828551,0.28634014,698.47,697.16,3.06817481]
[1736642828755,0.28634014,698.47,697.16,3.98840342]
[1736642829151,0.28634014,698.47,697.17,3.04615599]
[1736642829353,0.28634014,698.47,697.17,4.82758991]
[1736642829550,0.28634014,698.47,697.18,1.78143392]
[1736642829957,0.28634014,698.47,697.17,3.04615599]
[1736642830748,0.28634014,698.47,697.12,1.78143392]
[1736642830954,0.28634014,698.47,697.11,3.17143392]
[1736642831156,0.28634014,698.47,697.11,1.39]
[1736642836361,1.36064877,698.47,697.11,1.39]
[1736642837357,1.07430863,698.44,697.11,1.39]
[1736642837559,0.28635654,698.43,697.11,1.39]
[1736642841359,0.28635654,698.43,697.12,1.28674089]
[1736642842260,0.28635654,698.43,697.12,4.00628024]
[1736642843156,0.28635654,698.43,697.13,1.28674089]
[1736642843460,0.28635654,698.43,697.13,5.25531584]
[1736642843658,0.28635654,698.43,697.14,1.79712039]
[1736642844260,0.28635654,698.43,697.14,1.721]
[1736642844562,0.28635654,698.43,697.14,6.56427638]
[1736642844861,0.28635654,698.43,697.15,1.79712039]
[1736642846161,0.28635654,698.43,697.15,3.04615599]
[1736642846557,0.28635654,698.43,697.14,1.721]
[1736642857867,0.26331111,698.42,697.14,1.721]
[1736642858067,0.28636474,698.41,697.14,1.721]
[1736642858267,0.26331111,698.4,697.14,1.721]
[1736642858567,0.28637294,698.39,697.14,1.721]
[1736642858765,0.26331196,698.38,697.14,1.721]
[1736642858962,0.28638114,698.37,697.14,1.721]
[1736642859769,0.26331827,698.36,697.14,1.721]
[1736642860171,0.28638934,698.35,697.14,1.721]
[1736642868480,0.26334796,698.34,697.14,1.721]
[1736642868675,0.28640164,698.32,697.14,1.721]
[1736642868876,0.26334796,698.31,697.14,1.721]
[1736642869076,0.28640985,698.3,697.14,1.721]
[1736642869474,1.33765819,698.29,697.14,1.721]
[1736642869675,0.54976761,698.28,697.14,1.721]
[1736642869972,0.54977171,698.27,697.14,1.721]
[1736642870170,0.54977581,698.26,697.14,1.721]
[1736642870378,0.54977992,698.25,697.14,1.721]
[1736642870571,0.54978402,698.24,697.14,1.721]
[1736642870876,0.26334956,698.23,697.14,1.721]
[1736642871171,0.28644266,698.22,697.14,1.721]
[1736642871372,0.26334956,698.21,697.14,1.721]
[1736642871573,0.28645087,698.2,697.14,1.721]
[1736642872276,0.2633683,698.19,697.14,1.721]
[1736642872479,0.28645907,698.18,697.14,1.721]
[1736642884993,1.07430863,698.17,697.14,1.721]
[1736642885292,0.28646728,698.16,697.14,1.721]
[1736642885993,1.07430863,698.14,697.14,1.721]
[1736642886887,0.26340499,698.13,697.14,1.721]
[1736642887088,1.33771362,698.13,697.14,1.721]
[1736642887286,0.26340499,698.12,697.14,1.721]
[1736642887593,0.26342384,698.11,697.14,1.721]
[1736642887792,1.07430863,698.02,697.14,1.721]
[1736642888494,1.07430863,698.03,697.14,1.721]
[1736642889394,1.07430863,698.04,697.14,1.721]
[1736642889891,0.28652063,698.03,697.14,1.721]
[1736642890792,1.36082926,698.03,697.14,1.721]
[1736642891797,0.28652063,698.03,697.14,1.721]
[1736642927725,1.07430863,698.54,697.14,1.721]
[1736642927926,0.28631554,698.53,697.14,1.721]
[1736642959955,1.36062417,698.53,697.14,1.721]
[1736642960755,0.26325357,698.52,697.14,1.721]
[1736642960956,1.36062417,698.53,697.14,1.721]
[1736642960957,1.07430863,698.51,697.14,1.721]
[1736642961856,1.07430863,698.48,697.14,1.721]
[1736642962058,0.28634014,698.47,697.14,1.721]
[1736642970054,0.28634014,698.47,697.14,4.75857522]
[1736642970252,0.28634014,698.47,697.15,1.79778642]
[1736642970753,0.28634014,698.47,697.14,3.03757522]
[1736642971560,0.28634014,698.47,697.13,2.71944982]
[1736642971758,0.28634014,698.47,697.14,1.172]
[1736642972156,0.28634014,698.47,697.25,1.28674089]
[1736642973160,0.28634014,698.47,697.26,1.28674089]
[1736642976265,0.28634014,698.47,697.21,3.03757522]
[1736642976463,0.28634014,698.47,697.21,5.75702504]
[1736642976665,0.28634014,698.47,697.22,2.71944982]
[1736642977365,1.36064877,698.47,697.22,2.71944982]
[1736642978265,0.28634014,698.47,697.2,2.71944982]
[1736642978767,0.28634014,698.47,697.19,3.03757522]
[1736642979765,0.28634014,698.47,697.14,1.172]
[1736642985064,1.07430863,698.45,697.14,1.172]
[1736642985971,0.26331448,698.44,697.14,1.172]
[1736642986270,1.36066517,698.43,697.14,1.172]
[1736642986470,0.26331448,698.42,697.14,1.172]
[1736642986666,0.28636474,698.41,697.14,1.172]
[1736642986869,1.07430863,698.34,697.14,1.172]
[1736642987065,0.28639754,698.33,697.14,1.172]
[1736642988072,0.26333277,698.32,697.14,1.172]
[1736642988272,0.28640575,698.31,697.14,1.172]
[1736642999676,0.26334055,698.3,697.14,1.172]
[1736643000879,0.2633343,698.29,697.14,1.172]
[1736643001079,0.2633343,698.28,697.14,1.172]
[1736643001279,0.28640575,698.31,697.14,1.172]
[1736643001480,0.26333285,698.3,697.14,1.172]
[1736643002281,0.28641395,698.29,697.14,1.172]
[1736643002480,0.26333285,698.28,697.14,1.172]
[1736643002878,0.28642215,698.27,697.14,1.172]
[1736643003084,0.26333285,698.26,697.14,1.172]
[1736643003384,0.28643036,698.25,697.14,1.172]
[1736643015294,1.36073899,698.25,697.14,1.172]
[1736643015994,1.07430863,698.24,697.14,1.172]
[1736643016194,0.28643856,698.23,697.14,1.172]
[1736643016789,1.07430863,698.22,697.14,1.172]
[1736643016991,0.28644677,698.21,697.14,1.172]
[1736643017794,1.07430863,698.17,697.14,1.172]
[1736643017993,0.28646728,698.16,697.14,1.172]
[1736643020194,1.36077591,698.16,697.14,1.172]
[1736643021198,1.07430863,698.14,697.14,1.172]
[1736643021793,0.28647959,698.13,697.14,1.172]
[1736643027601,1.07430863,698.12,697.14,1.172]
[1736643027802,0.2864878,698.11,697.14,1.172]
[1736643028798,1.07430863,698.1,697.14,1.172]
[1736643029002,0.28649601,698.09,697.14,1.172]
[1736643032400,1.07430863,698.06,697.14,1.172]
[1736643033897,0.28651242,698.05,697.14,1.172]
[1736643088739,1.07430863,698.01,697.14,1.172]
[1736643088934,0.28653295,698.0,697.14,1.172]
[1736643090936,1.36084158,698.0,697.14,1.172]
[1736643092043,0.28653295,698.0,697.14,1.172]
[1736643107543,1.36084158,698.0,697.14,1.172]
[1736643108647,0.28653295,698.0,697.14,1.172]
[1736643113548,1.36084158,698.0,697.14,1.172]
[1736643114651,0.28653295,698.0,697.14,1.172]
[1736643190408,0.28653295,698.0,697.14,3.90309567]
[1736643191611,0.28653295,698.0,697.15,3.04176046]
[1736643191912,0.28653295,698.0,697.15,5.77285613]
[1736643192111,0.28653295,698.0,697.16,1.80494155]
[1736643192910,0.28653295,698.0,696.9,1.80494155]
[1736643193109,0.28653295,698.0,697.16,1.104]
[1736643217633,1.07430863,698.36,697.16,1.104]
[1736643218233,2.19338013,698.88,697.16,1.104]
[1736643218234,1.07430863,698.57,697.16,1.104]
[1736643218628,0.28630325,698.56,697.16,1.104]
[1736643231849,0.26323643,698.55,697.16,1.104]
[1736643232251,0.28631144,698.54,697.16,1.104]
[1736643232745,0.26323908,698.53,697.16,1.104]
[1736643232951,0.28631964,698.52,697.16,1.104]
[1736643233149,0.28631964,698.52,697.16,1.39087819]
[1736643233451,0.28631964,698.52,697.17,0.28687407]
[1736643235051,0.28631964,698.52,697.17,1.28787407]
[1736643243153,0.28631964,698.52,697.17,4.00523867]
[1736643243348,0.28631964,698.52,697.17,6.12140369]
[1736643243550,0.28631964,698.52,697.18,1.79697087]
[1736643243748,0.28631964,698.52,697.19,0.28686584]
[1736643244749,0.28631964,698.52,697.19,3.00126116]
[1736643253355,0.28631964,698.52,697.19,0.28686584]
[1736643254055,0.28631964,698.52,697.23,1.28674089]
[1736643254255,0.28631964,698.52,697.24,0.28684527]
[1736643254659,0.28631964,698.52,697.25,1.28674089]
[1736643254859,0.28631964,698.52,697.26,0.28683704]
[1736643258161,0.28631964,698.52,697.26,1.57357793]
[1736643258560,0.28631964,698.52,697.26,2.49100238]
[1736643258766,0.28631964,698.52,697.26,4.28797325]
[1736643259266,0.28631964,698.52,697.26,3.00123236]
[1736643260268,0.28631964,698.52,697.26,0.28683704]
[1736643281489,0.28631964,698.52,697.26,1.96783704]
[1736643296497,0.28631964,698.52,697.31,1.28674089]
[1736643297697,0.28631964,698.52,697.4,1.28674089]
[1736643298793,0.28631964,698.52,697.41,1.28674089]
[1736643300696,0.28631964,698.52,697.4,1.28674089]
[1736643301798,0.28631964,698.52,697.41,1.28674089]
[1736643302398,0.28631964,698.52,697.4,1.28674089]
[1736643303494,0.28631964,698.52,697.38,4.30365322]
[1736643303696,0.28631964,698.52,697.39,2.71450331]
[1736643304001,0.28631964,698.52,697.39,1.79681102]
[1736643304902,0.28631964,698.52,697.3,4.81372335]
[1736643305300,0.28631964,698.52,697.31,0.91809079]
[1736643305601,0.28631964,698.52,697.31,2.71490181]
[1736643306501,0.28631964,698.52,697.31,4.00190181]
[1736643306701,0.28631964,698.52,697.32,3.01691233]
[1736643306901,0.28631964,698.52,697.32,4.81372335]
[1736643308204,0.28631964,698.52,697.32,1.79681102]
[1736643308496,0.28631964,698.52,697.31,1.287]
[1736643324515,1.07430863,698.48,697.31,1.287]
[1736643325509,0.28631964,698.52,697.31,1.287]
[1736643337516,0.26327151,698.51,697.31,1.287]
[1736643337922,1.07430863,698.49,697.31,1.287]
[1736643338215,0.26327151,698.48,697.31,1.287]
[1736643338916,1.07430863,698.38,697.31,1.287]
[1736643339221,0.28638114,698.37,697.31,1.287]
[1736643350231,0.26330834,698.36,697.31,1.287]
[1736643350525,0.28638934,698.35,697.31,1.287]
[1736643350931,0.26331143,698.34,697.31,1.287]
[1736643351231,0.28639754,698.33,697.31,1.287]
[1736643371346,1.33765818,698.32,697.31,1.287]
[1736643371550,0.5497553,698.31,697.31,1.287]
[1736643371747,0.5497594,698.3,697.31,1.287]
[1736643372048,0.5497635,698.29,697.31,1.287]
[1736643372348,1.07430863,698.2,697.31,1.287]
[1736643372548,0.28645497,698.19,697.31,1.287]
[1736643373352,1.3607636,698.19,697.31,1.287]
[1736643374353,1.07430863,698.18,697.31,1.287]
[1736643374948,0.28645497,698.19,697.31,1.287]
[1736643376553,1.07430863,698.18,697.31,1.287]
[1736643377155,0.28646318,698.17,697.31,1.287]
[1736643381353,1.36077181,698.17,697.31,1.287]
[1736643382553,1.07430863,698.16,697.31,1.287]
[1736643383559,0.28646318,698.17,697.31,1.287]
[1736643392166,1.07430863,698.16,697.31,1.287]
[1736643392358,0.28647138,698.15,697.31,1.287]
[1736643400470,1.07430863,698.09,697.31,1.287]
[1736643400670,0.28650011,698.08,697.31,1.287]
[1736643404971,0.26347042,698.07,697.31,1.287]
[1736643405365,0.28650832,698.06,697.31,1.287]
[1736643405571,1.07430863,698.04,697.31,1.287]
[1736643405766,0.28652063,698.03,697.31,1.287]
[1736643406873,0.26349981,698.02,697.31,1.287]
[1736643407074,0.28652884,698.01,697.31,1.287]
[1736643407274,0.26349981,698.0,697.31,1.287]
[1736643407577,0.28653705,697.99,697.31,1.287]
[1736643407874,0.26349981,697.98,697.31,1.287]
[1736643408074,0.28654526,697.97,697.31,1.287]
[1736643408267,0.26349981,697.96,697.31,1.287]
[1736643408467,0.28655347,697.95,697.31,1.287]
[1736643408667,0.26349981,697.94,697.31,1.287]
[1736643408870,0.28656168,697.93,697.31,1.287]
[1736643409071,0.26349981,697.92,697.31,1.287]
[1736643409272,0.2865699,697.91,697.31,1.287]
[1736643409474,0.26349981,697.9,697.31,1.287]
[1736643409673,0.28657811,697.89,697.31,1.287]
[1736643410070,0.26351073,697.88,697.31,1.287]
[1736643410273,0.55009728,697.87,697.31,1.287]
[1736643410474,0.28659043,697.86,697.31,1.287]
[1736643411675,1.49673664,698.1,697.31,1.287]
[1736643411873,0.26352663,698.09,697.31,1.287]
[1736643415074,0.26355988,698.08,697.31,1.287]
[1736643415279,0.26355988,698.07,697.31,1.287]
[1736643415480,0.26355988,698.06,697.31,1.287]
[1736643415680,0.26355988,698.05,697.31,1.287]
[1736643415880,0.26355988,698.04,697.31,1.287]
[1736643416075,0.26355988,698.03,697.31,1.287]
[1736643416275,0.26355988,698.02,697.31,1.287]
[1736643416479,0.26355988,698.01,697.31,1.287]
[1736643416776,0.26355988,698.0,697.31,1.287]
[1736643417076,0.26355988,697.99,697.31,1.287]
[1736643417281,0.26355988,697.98,697.31,1.287]
[1736643417477,0.26355988,697.97,697.31,1.287]
[1736643417675,0.26355936,697.96,697.31,1.287]
[1736643417881,0.26355936,697.95,697.31,1.287]
[1736643418080,0.26355936,697.94,697.31,1.287]
[1736643418282,0.26355936,697.93,697.31,1.287]
[1736643418481,0.26355936,697.92,697.31,1.287]
[1736643418684,0.26355936,697.91,697.31,1.287]
[1736643418879,0.26355936,697.9,697.31,1.287]
[1736643419084,0.26355936,697.89,697.31,1.287]
[1736643419285,0.26355936,697.88,697.31,1.287]
[1736643419485,0.26355936,697.87,697.31,1.287]
[1736643419683,0.26355936,697.86,697.31,1.287]
[1736643419879,0.26355936,697.85,697.31,1.287]
[1736643420084,0.26355936,697.84,697.31,1.287]
[1736643420282,0.26355936,697.83,697.31,1.287]
[1736643420482,0.26355936,698.01,697.31,1.287]
[1736643420685,0.26356046,698.0,697.31,1.287]
[1736643420886,1.49697808,698.02,697.31,1.287]
[1736643420887,0.26356046,697.99,697.31,1.287]
[1736643421080,0.26356046,697.98,697.31,1.287]
[1736643421381,1.49697808,698.02,697.31,1.287]
[1736643421382,0.26356046,697.97,697.31,1.287]
[1736643421583,0.26356046,697.96,697.31,1.287]
[1736643421783,0.26356046,697.95,697.31,1.287]
[1736643421983,0.26356046,697.94,697.31,1.287]
[1736643422178,0.26356046,697.93,697.31,1.287]
[1736643422384,0.26356046,697.92,697.31,1.287]
[1736643422581,1.49697808,698.02,697.31,1.287]
[1736643422582,0.26356046,697.91,697.31,1.287]
[1736643422886,0.26356046,697.9,697.31,1.287]
[1736643423083,0.26356046,697.89,697.31,1.287]
[1736643423284,0.26356046,697.88,697.31,1.287]
[1736643423589,0.26356046,697.87,697.31,1.287]
[1736643423789,0.26356046,697.86,697.31,1.287]
[1736643423987,0.26356046,698.01,697.31,1.287]
[1736643424187,0.26356046,698.0,697.31,1.287]
[1736643424389,0.26356046,697.99,697.31,1.287]
[1736643424589,0.26356046,697.98,697.31,1.287]
[1736643424890,0.26356046,697.97,697.31,1.287]
[1736643425089,0.2635364,697.96,697.31,1.287]
[1736643425290,0.2635364,697.95,697.31,1.287]
[1736643425589,0.2635364,697.94,697.31,1.287]
[1736643425790,1.49697808,698.02,697.31,1.287]
[1736643425991,0.2635273,698.01,697.31,1.287]
[1736643426286,0.2635273,698.0,697.31,1.287]
[1736643426489,0.2635273,697.99,697.31,1.287]
[1736643426785,0.2635273,697.98,697.31,1.287]
[1736643426990,0.2635273,697.97,697.31,1.287]
[1736643427184,0.2635273,697.96,697.31,1.287]
[1736643427386,0.2635273,697.95,697.31,1.287]
[1736643427591,0.2635273,697.94,697.31,1.287]
[1736643427793,0.2635273,698.0,697.31,1.287]
[1736643427992,1.49692979,697.95,697.31,1.287]
[1736643428195,0.2635273,697.94,697.31,1.287]
[1736643429494,0.2635273,697.93,697.31,1.287]
[1736643429691,0.2635273,697.92,697.31,1.287]
[1736643429897,0.2635273,697.91,697.31,1.287]
[1736643430097,0.2635273,697.9,697.31,1.287]
[1736643430298,0.2635273,697.89,697.31,1.287]
[1736643430494,0.2635273,697.88,697.31,1.287]
[1736643430694,0.2635273,697.87,697.31,1.287]
[1736643430999,2.57123842,697.95,697.31,1.287]
[1736643431000,0.2635273,697.86,697.31,1.287]
[1736643431192,0.2635273,697.85,697.31,1.287]
[1736643431392,0.2635273,697.84,697.31,1.287]
[1736643431599,0.2635273,697.83,697.31,1.287]
[1736643431799,0.2635273,697.82,697.31,1.287]
[1736643431999,0.2635273,697.81,697.31,1.287]
[1736643432200,0.2635273,697.8,697.31,1.287]
[1736643432404,0.2635273,697.79,697.31,1.287]
[1736643432601,0.2635273,697.78,697.31,1.287]
[1736643432801,0.2635273,697.77,697.31,1.287]
[1736643433101,0.2635273,697.76,697.31,1.287]
[1736643433300,0.2635273,697.75,697.31,1.287]
[1736643433501,0.2635273,697.74,697.31,1.287]
[1736643433701,0.2635273,697.73,697.31,1.287]
[1736643433904,0.2635273,697.72,697.31,1.287]
[1736643434099,0.2635273,697.84,697.31,1.287]
[1736643434303,0.2635273,697.83,697.31,1.287]
[1736643434501,1.07430863,697.79,697.31,1.287]
[1736643434698,0.2635273,697.78,697.31,1.287]
[1736643435605,1.07430863,697.77,697.31,1.287]
[1736643435904,0.2635273,697.76,697.31,1.287]
[1736643436403,1.07430863,697.75,697.31,1.287]
[1736643436603,0.2635273,697.74,697.31,1.287]
[1736643437402,1.07430863,697.71,697.31,1.287]
[1736643437597,0.2635273,697.7,697.31,1.287]
[1736643438299,1.07430863,697.71,697.31,1.287]
[1736643438504,1.07430863,697.68,697.31,1.287]
[1736643439606,1.07430863,697.65,697.31,1.287]
[1736643440205,1.07430863,697.64,697.31,1.287]
[1736643441001,1.07430863,697.62,697.31,1.287]
[1736643441810,1.07430863,697.6,697.31,1.287]
[1736643443108,1.07430863,697.59,697.31,1.287]
[1736643447304,1.07430863,697.61,697.31,1.287]
[1736643448206,1.07430863,697.62,697.31,1.287]
[1736643450010,1.07430863,697.64,697.31,1.287]
[1736643452909,1.07430863,697.62,697.31,1.287]
[1736643454707,0.88628903,697.94,697.31,1.287]
[1736643454708,1.07430863,697.59,697.31,1.287]
[1736643457311,1.07430863,697.6,697.31,1.287]
[1736643457911,1.07430863,697.59,697.31,1.287]
[1736643458714,1.07430863,697.58,697.31,1.287]
[1736643459616,1.07430863,697.59,697.31,1.287]
[1736643464121,1.07430863,697.61,697.31,1.287]
[1736643465118,1.07430863,697.6,697.31,1.287]
[1736643466324,1.07430863,697.59,697.31,1.287]
[1736643469624,1.07430863,697.58,697.31,1.287]
[1736643471127,1.07430863,697.59,697.31,1.287]
[1736643473128,1.07430863,697.57,697.31,1.287]
[1736643475732,1.07430863,697.58,697.31,1.287]
[1736643478028,1.07430863,697.55,697.31,1.287]
[1736643479829,1.07430863,697.54,697.31,1.287]
[1736643482235,1.07430863,697.53,697.31,1.287]
[1736643483036,1.07430863,697.57,697.31,1.287]
[1736643484338,1.07430863,697.59,697.31,1.287]
[1736643487741,1.07430863,697.58,697.31,1.287]
[1736643492047,1.07430863,697.6,697.31,1.287]
[1736643492951,1.07430863,697.58,697.31,1.287]
[1736643493842,1.07430863,697.57,697.31,1.287]
[1736643496946,1.07430863,697.55,697.31,1.287]
[1736643497851,0.88628903,697.9,697.31,1.287]
[1736643497852,1.07430863,697.58,697.31,1.287]
[1736643499454,1.07430863,697.59,697.31,1.287]
[1736643500350,1.07430863,697.7,697.31,1.287]
[1736643500750,0.28666026,697.69,697.31,1.287]
[1736643501855,1.36096889,697.69,697.31,1.287]
[1736643504157,0.28666026,697.69,697.31,1.287]
[1736643512263,0.26356455,697.68,697.31,1.287]
[1736643512764,1.07430863,697.61,697.31,1.287]
[1736643512963,0.28669724,697.6,697.31,1.287]
[1736643605026,1.07430863,697.97,697.31,1.287]
[1736643605331,1.07430863,697.98,697.31,1.287]
[1736643605729,0.28654526,697.97,697.31,1.287]
[1736643606230,1.07430863,697.95,697.31,1.287]
[1736643607233,1.07430863,697.94,697.31,1.287]
[1736643608325,0.28654526,697.97,697.31,1.287]
[1736643623736,1.36085389,697.97,697.31,1.287]
[1736643624841,1.07430863,697.96,697.31,1.287]
[1736643625141,0.28655347,697.95,697.31,1.287]
[1736643625738,1.07430863,697.94,697.31,1.287]
[1736643627745,0.28655347,697.95,697.31,1.287]
[1736643637056,1.07430863,697.9,697.31,1.287]
[1736643642158,1.07430863,697.89,697.31,1.287]
[1736643642863,1.07430863,697.88,697.31,1.287]
[1736643646268,1.07430863,697.85,697.31,1.287]
[1736643647662,0.28659864,697.84,697.31,1.287]
[1736643703210,0.2635125,697.83,697.31,1.287]
[1736643703706,0.28659864,697.84,697.31,1.287]
[1736643712620,1.36090727,697.84,697.31,1.287]
[1736643714119,1.07430863,697.83,697.31,1.287]
[1736643714419,0.28660686,697.82,697.31,1.287]
[1736643714713,1.07430863,697.77,697.31,1.287]
[1736643714915,0.2866315,697.76,697.31,1e-08]
[1736643724224,0.26361214,697.75,697.31,1e-08]
[1736643724824,0.26362191,697.74,697.31,1e-08]
[1736643725125,0.26362191,697.73,697.31,1e-08]
[1736643725325,0.2866315,697.76,697.31,1e-08]
[1736643725326,1.33793054,697.72,697.31,1e-08]
[1736643725522,0.55027976,697.71,697.31,1e-08]
[1736643725723,0.26362772,697.7,697.31,1e-08]
[1736643727121,0.28666026,697.69,697.31,1e-08]
[1736643727324,0.26362772,697.68,697.31,1e-08]
[1736643727521,0.26365593,697.67,697.31,1e-08]
[1736643727825,0.26365593,697.66,697.31,1e-08]
[1736643728126,0.26365593,697.65,697.31,1e-08]
[1736643728425,0.55033673,697.64,697.31,1e-08]
[1736643728626,0.55034084,697.63,697.31,1e-08]
[1736643728820,0.26365593,697.62,697.31,1e-08]
[1736643729225,0.26365593,697.62,695.84,0.28742239]
[1736643729424,0.28669724,697.6,695.84,0.28742239]
[1736643729622,0.26365593,697.59,695.84,0.28742239]
[1736643729822,0.28670957,697.57,695.84,0.28742239]
[1736643730723,0.26364902,697.56,695.84,0.28742239]
[1736643730920,0.28671779,697.55,695.84,0.28742239]
[1736643731126,0.26364902,697.54,695.84,0.28742239]
[1736643731328,0.28672601,697.53,695.84,0.28742239]
[1736643732026,0.26365503,697.52,695.84,0.28742239]
[1736643732331,0.26365503,697.52,695.84,1.43642239]
[1736643732332,0.28673424,697.51,695.84,1.43642239]
[1736643732530,0.26365503,697.5,695.84,1.43642239]
[1736643732731,0.28674246,697.49,695.84,1.43642239]
[1736643733531,0.26365069,697.48,695.84,1.43642239]
[1736643733724,0.28675068,697.47,695.84,1.43642239]
[1736643735331,0.28675068,697.47,695.84,4.47499235]
[1736643735531,0.28675068,697.47,695.85,2.72610916]
[1736643735831,0.28675068,697.47,695.86,0.28741413]
[1736643736531,0.26365363,697.46,695.86,3.01352329]
[1736643736733,0.2867589,697.45,695.86,3.01352329]
[1736643740925,0.2867589,697.45,695.93,1.28674089]
[1736643741731,0.2867589,697.45,695.86,3.01352329]
[1736643743935,0.2867589,697.45,695.86,4.30026418]
[1736643745134,0.2867589,697.45,695.89,1.28674089]
[1736643745530,0.2867589,697.45,695.89,2.49174089]
[1736643745726,0.2867589,697.45,695.91,1.28674089]
[1736643745930,0.2867589,697.45,695.92,0.28738935]
[1736643746932,0.2867589,697.45,695.92,3.01349851]
[1736643748333,0.2867589,697.45,695.94,1.28674089]
[1736643748527,0.2867589,697.45,695.95,0.28737696]
[1736643749229,0.2867589,697.45,695.97,1.28674089]
[1736643750027,0.2867589,697.45,696.01,1.28674089]
[1736643750937,0.2867589,697.45,696.13,1.28674089]
[1736643753035,0.2867589,697.45,696.16,1.28674089]
[1736643754033,0.2867589,697.45,696.17,1.28674089]
[1736643754736,0.2867589,697.45,696.18,1.28674089]
[1736643755639,0.2867589,697.45,696.1,3.03856996]
[1736643755836,0.2867589,697.45,696.1,5.76467912]
[1736643756141,0.2867589,697.45,696.11,2.72610916]
[1736643756640,0.2867589,697.45,696.17,1.28674089]
[1736643758539,0.2867589,697.45,696.18,1.28674089]
[1736643759442,0.2867589,697.45,696.19,1.28674089]
[1736643760343,0.2867589,697.45,696.18,1.28674089]
[1736643761344,0.2867589,697.45,696.18,4.32531085]
[1736643761537,0.2867589,697.45,696.19,2.72610916]
[1736643762239,0.2867589,697.45,696.19,4.01285005]
[1736643762639,0.2867589,697.45,696.19,3.0915552]
[1736643762845,0.2867589,697.45,696.2,3.03856996]
[1736643763139,0.2867589,697.45,696.2,4.84338427]
[1736643763343,0.2867589,697.45,696.21,1.80481431]
[1736643764036,0.2867589,697.45,696.17,1.80481431]
[1736643764237,0.26365507,697.44,696.16,1.28674089]
[1736643764439,0.28676713,697.43,696.16,1.28674089]
[1736643765842,0.28676713,697.43,696.15,1.28674089]
[1736643766639,0.28676713,697.43,696.1,3.03856996]
[1736643766842,0.28676713,697.43,696.06,3.03856996]
[1736643768439,0.28676713,697.43,696.0,1.80725493]
[1736643768643,0.28676713,697.43,696.06,1.787]
[1736643772951,1.33800015,697.42,696.06,1.787]
[1736643773150,0.26369152,697.41,696.06,1.787]
[1736643773747,1.07430863,697.36,696.06,3.59658367]
[1736643773948,1.07430863,697.36,696.06,1.787]
[1736643774248,1.07430863,697.36,696.07,3.03856996]
[1736643774748,1.07430863,697.36,696.07,4.84815363]
[1736643774952,1.07430863,697.34,696.07,4.84815363]
[1736643775347,1.07430863,697.34,696.07,3.03856996]
[1736643775851,0.28676713,697.43,696.07,3.03856996]
[1736643776453,0.28676713,697.43,696.06,1.787]
[1736643781252,0.2637284,697.42,696.06,1.787]
[1736643782056,1.4984929,697.41,696.06,1.787]
[1736643782252,0.2637284,697.4,696.06,1.787]